bitfinex-derivatives/quotes_SOLF0:USTF0_20250609
["timestamp","ask_amount","ask_price","bid_price","bid_amount"]
[1749493543287,7.57839756,156.6,156.55,32.22]
[1749493543481,0.04080551,156.59,156.56,0.04374762]
[1749493543687,6.383,156.58,156.56,0.04374762]
[1749493543883,0.04080551,156.59,156.56,0.04374762]
[1749493544379,6.3827,156.58,156.56,0.04374762]
[1749493544584,0.04080551,156.59,156.56,6.42704762]
[1749493544989,6.42340551,156.59,156.56,6.42704762]
[1749493545689,6.3828,156.58,156.56,6.42704762]
[1749493546278,6.42330551,156.59,156.56,6.42704762]
[1749493546787,0.04080551,156.59,156.56,6.42704762]
[1749493547790,6.3829,156.58,156.56,6.42704762]
[1749493548381,6.3829,156.58,156.56,0.04374762]
[1749493553587,6.3832,156.57,156.56,0.04374762]
[1749493554787,6.3831,156.58,156.56,0.04374762]
[1749493555193,0.04080551,156.59,156.56,0.04374762]
[1749493555390,6.3832,156.57,156.56,0.04374762]
[1749493555591,0.04080551,156.59,156.56,0.04374762]
[1749493556898,6.383,156.58,156.56,6.42734762]
[1749493560101,6.42340551,156.59,156.56,6.42734762]
[1749493561205,6.3829,156.58,156.56,6.42734762]
[1749493563202,0.04080551,156.59,156.56,0.04374762]
[1749493563607,0.04080551,156.59,156.57,6.383]
[1749493564303,0.04080551,156.59,156.56,0.04374762]
[1749493564506,7.61920307,156.59,156.56,0.04374762]
[1749493564709,6.3832,156.57,156.56,0.04374762]
[1749493565507,0.04080551,156.59,156.56,0.04374762]
[1749493566105,6.42350551,156.59,156.56,6.42724762]
[1749493566502,6.3828,156.58,156.56,0.04374762]
[1749493568109,6.3832,156.57,156.56,0.04374762]
[1749493568598,6.42340551,156.59,156.56,6.42734762]
[1749493569003,0.04080551,156.59,156.56,6.42734762]
[1749493569404,6.3831,156.58,156.56,6.42734762]
[1749493570410,0.04080551,156.59,156.56,6.42734762]
[1749493572513,6.42330551,156.59,156.56,6.42734762]
[1749493572911,6.3829,156.58,156.56,0.04374762]
[1749493573112,0.04080551,156.59,156.56,0.04374762]
[1749493573614,6.42350551,156.59,156.56,0.04374762]
[1749493574614,0.04080551,156.59,156.56,6.42724762]
[1749493575013,6.42340551,156.59,156.56,6.42724762]
[1749493575615,6.42340551,156.59,156.56,0.04374762]
[1749493578219,6.42340551,156.59,156.56,6.42744762]
[1749493578412,0.04080551,156.59,156.56,6.42744762]
[1749493580025,5.33098102,156.59,156.56,6.42744762]
[1749493580219,0.04080551,156.59,156.56,6.42744762]
[1749493580418,0.04080551,156.59,156.57,6.3831]
[1749493581222,5.30176019,156.58,156.57,6.3831]
[1749493582328,5.30176019,156.58,156.56,6.42734762]
[1749493582625,11.27571952,156.59,156.56,6.42734762]
[1749493582927,5.30422646,156.58,156.56,6.42734762]
[1749493583125,11.27571952,156.59,156.56,6.42734762]
[1749493583421,5.30568864,156.58,156.56,6.42734762]
[1749493583727,5.30568864,156.57,156.56,6.42734762]
[1749493584626,4.89321952,156.59,156.56,6.42734762]
[1749493584826,5.30827055,156.58,156.57,6.3833]
[1749493588534,9.40901757,156.58,156.57,6.3833]
[1749493588935,9.40901757,156.58,156.56,6.42734762]
[1749493589135,5.30827055,156.57,156.56,6.42734762]
[1749493591238,5.30827055,156.57,156.56,0.04374762]
[1749493591635,14.2674179,156.57,156.56,0.04374762]
[1749493591837,20.6507179,156.57,156.56,0.04374762]
[1749493592043,20.65072527,156.57,156.56,0.04374762]
[1749493592241,14.26736704,156.57,156.56,0.04374762]
[1749493592545,14.26736848,156.57,156.56,0.04374762]
[1749493593342,10.16068456,156.57,156.56,0.04374762]
[1749493593549,20.65054802,156.57,156.56,0.04374762]
[1749493593736,20.6505477,156.57,156.56,0.04374762]
[1749493594437,14.2672477,156.57,156.56,0.04374762]
[1749493594639,10.16068456,156.57,156.56,0.04374762]
[1749493595443,16.54398456,156.57,156.56,0.04374762]
[1749493595637,20.64959343,156.57,156.56,0.04374762]
[1749493595942,14.26629343,156.57,156.56,0.04374762]
[1749493596835,14.26425104,156.57,156.56,0.04374762]
[1749493598445,14.26419116,156.57,156.56,0.04374762]
[1749493598645,14.26419083,156.57,156.56,0.04374762]
[1749493598941,14.26419115,156.57,156.56,6.42744762]
[1749493599148,5.30827055,156.57,156.56,6.42744762]
[1749493599444,9.41177648,156.57,156.56,0.04374762]
[1749493599637,5.30827055,156.57,156.56,0.04374762]
[1749493601350,10.16068456,156.57,156.56,0.04374762]
[1749493602653,10.16068456,156.57,156.56,6.42744762]
[1749493603152,10.16068456,156.57,156.56,0.04374762]
[1749493609260,5.30827055,156.57,156.56,0.04374762]
[1749493609456,10.16068456,156.57,156.56,0.04374762]
[1749493610847,5.30827055,156.57,156.56,0.04374762]
[1749493611051,5.30827055,156.57,156.56,6.42744762]
[1749493611256,5.30827055,156.57,156.56,11.27986163]
[1749493611451,7.31,156.58,156.56,4.89616163]
[1749493611663,7.31,156.58,156.57,6.3833]
[1749493611854,12.62252201,156.58,156.57,6.3833]
[1749493612056,12.62252328,156.58,156.57,6.3833]
[1749493613153,5.97625557,156.63,156.61,6.3817]
[1749493613354,5.30896492,156.62,156.61,6.3817]
[1749493613858,5.30896492,156.62,156.6,4.85241401]
[1749493614057,5.30896492,156.61,156.6,4.85241401]
[1749493614250,5.30896492,156.61,156.6,4.89728092]
[1749493614455,5.30896492,156.61,156.6,11.27938092]
[1749493614655,5.30896492,156.61,156.6,6.42696691]
[1749493615857,5.30896492,156.61,156.6,11.27938092]
[1749493616456,0.04446027,156.63,156.62,6.3813]
[1749493616652,5.36038413,156.63,156.62,6.3813]
[1749493618258,5.36038413,156.63,156.62,11.23371401]
[1749493618448,0.04446027,156.63,156.62,11.23371401]
[1749493619357,0.04446027,156.63,156.62,13.95507944]
[1749493624065,0.04446027,156.63,156.61,6.3815]
[1749493624258,0.04446027,156.63,156.6,7.61864635]
[1749493624462,6.42556027,156.63,156.6,14.00054635]
[1749493624764,0.04446027,156.63,156.6,0.04486691]
[1749493625454,6.3813,156.62,156.6,0.04486691]
[1749493626363,6.3817,156.61,156.6,0.04486691]
[1749493627264,15.19823971,156.63,156.6,0.04486691]
[1749493627265,6.3814,156.62,156.6,0.04486691]
[1749493628555,6.3817,156.61,156.6,0.04486691]
[1749493630059,11.69811994,156.62,156.6,0.04486691]
[1749493630260,6.3815,156.62,156.6,0.04486691]
[1749493633274,5.30147995,156.61,156.6,0.04486691]
[1749493633466,11.68317995,156.61,156.6,0.04486691]
[1749493633968,6.3828,156.59,156.56,6.3834]
[1749493634169,7.57377944,156.57,156.52,32.2]
[1749493634868,6.42511973,156.56,156.53,6.42579733]
[1749493635878,0.04121973,156.56,156.53,0.04109733]
[1749493636272,0.04121973,156.56,156.54,6.3843]
[1749493636470,0.04121973,156.56,156.53,0.04109733]
[1749493637470,0.04121973,156.56,156.55,6.3841]
[1749493638174,36.4793,156.62,156.59,6.3824]
[1749493638877,5.28640676,156.61,156.58,6.3827]
[1749493639175,0.04042689,156.61,156.58,6.43035194]
[1749493639779,6.42222689,156.61,156.58,6.43035194]
[1749493639973,6.42222689,156.61,156.59,6.3825]
[1749493640175,0.04042689,156.61,156.59,6.3825]
[1749493640375,6.42212689,156.61,156.58,0.04765194]
[1749493640577,6.42212689,156.61,156.58,6.43035194]
[1749493641375,6.3821,156.6,156.58,0.04765194]
[1749493642578,5.28938675,156.59,156.52,39.77377944]
[1749493642778,5.28938675,156.58,156.52,32.2]
[1749493642975,6.3833,156.58,156.54,6.3843]
[1749493643170,7.57377944,156.6,156.54,6.3843]
[1749493643383,7.57377944,156.58,156.52,32.2]
[1749493643583,6.384,156.56,156.53,6.4263312]
[1749493643978,6.3838,156.56,156.53,0.0417312]
[1749493644376,0.04664827,156.57,156.53,0.0417312]
[1749493644579,7.57377944,156.56,156.53,0.0417312]
[1749493645178,6.3844,156.55,156.53,0.0417312]
[1749493646077,6.3844,156.55,156.53,6.4266312]
[1749493647377,6.3844,156.55,156.53,0.0417312]
[1749493650080,6.3845,156.54,156.53,0.0417312]
[1749493650884,6.3843,156.55,156.53,0.0417312]
[1749493651381,16.05837944,156.56,156.53,6.4266312]
[1749493652380,2.1007,156.56,156.54,6.3844]
[1749493652983,0.04664827,156.57,156.54,6.3844]
[1749493653583,6.43024827,156.57,156.54,6.3844]
[1749493655478,6.43024827,156.57,156.55,6.3841]
[1749493656184,10.77664827,156.57,156.55,6.3841]
[1749493656490,10.77664827,156.57,156.56,6.3837]
[1749493657291,10.77664827,156.57,156.55,6.3839]
[1749493658800,10.77664827,156.57,156.56,6.3837]
[1749493679211,10.77664827,156.57,156.56,11.23554291]
[1749493682313,4.85184291,156.62,156.56,11.23554291]
[1749493682314,11.23334291,156.62,156.59,6.3821]
[1749493682612,11.23334291,156.62,156.53,32.2417312]
[1749493682613,10.16419243,156.61,156.57,37.03184291]
[1749493682812,5.31244684,156.6,156.58,6.3827]
[1749493683018,11.23384291,156.61,156.58,6.3827]
[1749493683207,5.31253007,156.6,156.58,6.3827]
[1749493683406,6.43029355,156.61,156.58,6.42363063]
[1749493683608,11.69352674,156.6,156.58,6.42363063]
[1749493683816,6.3821,156.6,156.58,6.42363063]
[1749493684019,0.04829355,156.61,156.59,6.3825]
[1749493684219,5.31131337,156.6,156.59,6.3825]
[1749493685112,4.13421144,156.6,156.59,6.3825]
[1749493685717,6.43019355,156.61,156.59,6.3825]
[1749493686920,0.04829355,156.61,156.6,6.3821]
[1749493689917,6.3821,156.6,156.58,0.04093063]
[1749493690512,6.43009355,156.61,156.58,0.04093063]
[1749493690723,0.04829355,156.61,156.58,0.04093063]
[1749493692025,0.04829355,156.61,156.6,6.3821]
[1749493699929,9.355e-05,156.61,156.6,6.3821]
[1749493701828,6.03,156.62,156.61,6.3817]
[1749493702025,8.5518,156.69,156.63,7.57960147]
[1749493702332,5.32243618,156.68,156.63,7.57960147]
[1749493702534,5.32243618,156.67,156.65,6.3798]
[1749493702733,6.379,156.68,156.63,7.57960147]
[1749493702927,5.32114529,156.67,156.64,0.04707515]
[1749493703132,6.379,156.68,156.64,0.04707515]
[1749493703327,5.32113339,156.67,156.64,0.04707515]
[1749493703523,6.379,156.68,156.64,0.04707515]
[1749493703731,5.32030507,156.67,156.64,0.04707515]
[1749493703931,6.3793,156.67,156.65,6.38]
[1749493704130,2.1733,156.69,156.65,6.38]
[1749493704331,5.32034189,156.68,156.65,6.38]
[1749493704630,5.32034189,156.67,156.65,6.38]
[1749493704830,2.1733,156.69,156.66,6.3796]
[1749493705032,5.31943976,156.68,156.66,6.3796]
[1749493705232,8.552,156.69,156.66,6.3796]
[1749493705433,5.3193566,156.68,156.66,6.3796]
[1749493705632,8.552,156.69,156.66,6.3796]
[1749493705933,5.32380605,156.68,156.66,6.3796]
[1749493706132,6.3788,156.68,156.66,6.3796]
[1749493707836,6.3788,156.68,156.64,0.04707515]
[1749493708236,8.5518,156.69,156.64,0.04707515]
[1749493708436,5.32407435,156.68,156.64,7.62667662]
[1749493708732,8.5518,156.69,156.64,7.62667662]
[1749493709036,5.3234762,156.68,156.66,6.3794]
[1749493709236,8.5518,156.69,156.66,6.3794]
[1749493709437,5.3234762,156.68,156.65,6.3799]
[1749493709736,2.1733,156.69,156.65,6.3799]
[1749493709938,5.32299118,156.68,156.65,6.3799]
[1749493710139,2.1733,156.69,156.65,6.3799]
[1749493710338,5.3229878,156.68,156.65,6.3799]
[1749493710634,2.1733,156.69,156.65,6.3799]
[1749493710840,6.3792,156.67,156.65,6.3799]
[1749493711048,2.1733,156.69,156.64,0.04707515]
[1749493711339,8.5519,156.69,156.64,0.04707515]
[1749493712438,6.3788,156.68,156.66,6.3794]
[1749493713342,8.5519,156.69,156.66,6.3794]
[1749493714341,6.3788,156.68,156.66,6.3794]
[1749493714944,6.3788,156.68,156.65,6.3798]
[1749493715345,6.3793,156.67,156.65,6.3798]
[1749493718439,11.70430823,156.68,156.65,6.3798]
[1749493718643,6.379,156.68,156.66,6.3795]
[1749493724150,5.33248047,156.67,156.66,6.3795]
[1749493724350,10.17963014,156.67,156.64,0.04707515]
[1749493724650,4.84714967,156.65,156.64,0.04707515]
[1749493725054,10.18094148,156.65,156.64,0.04707515]
[1749493726149,10.18094148,156.65,156.62,11.22824967]
[1749493726349,4.84714967,156.65,156.62,6.3811]
[1749493726953,11.70951531,156.64,156.62,6.3811]
[1749493727255,6.3806,156.64,156.62,6.3811]
[1749493727751,0.04708734,156.65,156.61,32.20864745]
[1749493728054,0.04708734,156.65,156.61,0.04864745]
[1749493728055,12.91038882,156.64,156.61,0.04864745]
[1749493728249,5.33283158,156.63,156.61,0.04864745]
[1749493728450,7.57755724,156.64,156.61,0.04864745]
[1749493728649,5.33321516,156.63,156.61,0.04864745]
[1749493728843,6.3812,156.63,156.61,0.04864745]
[1749493729050,5.33395995,156.62,156.61,0.04864745]
[1749493729248,7.57755724,156.64,156.61,0.04864745]
[1749493729452,6.3812,156.62,156.61,0.04864745]
[1749493729655,12.91014193,156.62,156.58,32.14]
[1749493729856,5.33258469,156.61,156.58,32.14]
[1749493730060,6.3819,156.61,156.58,32.14]
[1749493730252,6.3819,156.61,156.59,6.3824]
[1749493734249,11.69906833,156.6,156.58,32.18761825]
[1749493734463,6.3821,156.6,156.58,0.04761825]
[1749493734859,8.5449,156.61,156.58,6.43021825]
[1749493735056,5.31545671,156.6,156.58,6.43021825]
[1749493735250,8.5449,156.61,156.58,6.43021825]
[1749493739669,6.3821,156.6,156.58,6.43021825]
[1749493740771,8.5449,156.61,156.58,6.43021825]
[1749493741469,8.5449,156.61,156.59,6.3824]
[1749493741767,0.04243377,156.62,156.58,7.62517549]
[1749493742066,0.04243377,156.62,156.59,32.12]
[1749493742968,0.04243377,156.62,156.61,6.3817]
[1749493751280,0.04243377,156.62,156.61,11.2306973]
[1749493754778,6.42383377,156.62,156.59,32.12]
[1749493754978,6.42383377,156.62,156.59,36.9689973]
[1749493755179,4.89143107,156.62,156.59,32.12]
[1749493755382,6.3821,156.6,156.59,32.12]
[1749493755680,4.89143107,156.62,156.59,38.5022]
[1749493755977,6.3818,156.61,156.59,38.5022]
[1749493756183,6.3818,156.61,156.59,43.3511973]
[1749493756478,6.3818,156.61,156.59,36.9689973]
[1749493756778,11.27283107,156.62,156.59,38.5022]
[1749493759179,11.27283107,156.62,156.59,43.3511973]
[1749493759979,4.89143107,156.62,156.59,4.8489973]
[1749493760274,4.89143107,156.62,156.61,6.3817]
[1749493760581,10.20068209,156.62,156.61,6.3817]
[1749493760878,10.20068209,156.62,156.58,0.04761825]
[1749493761081,4.89143107,156.62,156.59,4.8489973]
[1749493761876,4.89143107,156.62,156.59,11.2312973]
[1749493762279,4.89143107,156.62,156.59,6.3823]
[1749493762484,4.8489973,156.61,156.58,11.27921555]
[1749493763385,6.3823,156.6,156.58,11.27921555]
[1749493763584,6.3823,156.6,156.58,6.43021825]
[1749493764682,6.3823,156.6,156.58,11.27921555]
[1749493765183,6.3818,156.61,156.59,6.3825]
[1749493768087,11.27283107,156.62,156.59,6.3825]
[1749493768288,5.30786221,156.61,156.59,6.3825]
[1749493768586,11.27283107,156.62,156.59,6.3825]
[1749493768885,5.30994091,156.61,156.59,6.3825]
[1749493769092,11.27283107,156.62,156.59,6.3825]
[1749493769285,11.27283107,156.62,156.58,4.89661555]
[1749493769286,5.30994091,156.61,156.6,6.3821]
[1749493770289,16.54073821,156.61,156.59,6.3823]
[1749493770590,5.31176412,156.6,156.58,0.04761825]
[1749493770788,11.2307973,156.61,156.58,6.43011825]
[1749493770987,5.31179474,156.6,156.58,6.43011825]
[1749493771188,11.2307973,156.61,156.58,0.04761825]
[1749493771389,5.31179474,156.6,156.59,6.3822]
[1749493772888,11.2307973,156.61,156.59,6.3822]
[1749493773093,5.31211992,156.6,156.59,6.3822]
[1749493779099,5.31203669,156.6,156.59,6.3822]
[1749493783502,5.31203669,156.6,156.58,6.43031825]
[1749493783801,11.2307973,156.61,156.58,6.43031825]
[1749493783997,5.30933875,156.6,156.58,6.43031825]
[1749493784204,4.8489973,156.6,156.58,0.04761825]
[1749493784403,5.30948619,156.59,156.58,0.04761825]
[1749493785104,16.54098349,156.59,156.58,0.04761825]
[1749493785496,16.54110876,156.59,156.58,0.04761825]
[1749493786498,10.15860876,156.59,156.58,6.43051825]
[1749493786901,4.8489973,156.59,156.58,6.43051825]
[1749493787299,11.2311973,156.6,156.58,6.43051825]
[1749493787499,6.3817,156.61,156.59,6.3825]
[1749493787701,6.3817,156.61,156.58,0.04761825]
[1749493787702,10.15640989,156.6,156.58,0.04761825]
[1749493787897,4.8489973,156.6,156.58,0.04761825]
[1749493788293,4.8489973,156.59,156.58,0.04761825]
[1749493788500,4.8489973,156.59,156.53,32.1]
[1749493788501,14.25364689,156.59,156.53,32.1]
[1749493788704,4.8489973,156.57,156.53,32.1]
[1749493789002,11.2324973,156.57,156.54,6.3844]
[1749493789396,6.3838,156.56,156.54,6.42993053]
[1749493790305,6.3841,156.55,156.54,0.04553053]
[1749493790503,4.8489973,156.56,156.54,0.04553053]
[1749493790701,11.2328973,156.56,156.54,6.42993053]
[1749493790906,0.04704771,156.57,156.54,0.04553053]
[1749493790907,4.8489973,156.55,156.54,0.04553053]
[1749493791501,4.8489973,156.56,156.54,0.04553053]
[1749493791907,0.04704771,156.57,156.54,0.04553053]
[1749493792107,11.2328973,156.56,156.54,0.04553053]
[1749493792496,11.2328973,156.56,156.54,6.43003053]
[1749493794109,14.7628973,156.56,156.54,6.43003053]
[1749493794514,3.53,156.56,156.55,6.3841]
[1749493795207,3.53,156.56,156.55,11.2330973]
[1749493800209,3.53,156.56,156.55,6.3841]
[1749493800406,8.3789973,156.56,156.54,0.04553053]
[1749493800611,16.53219429,156.55,156.54,0.04553053]
[1749493803315,19.27022605,156.55,156.54,0.04553053]
[1749493804021,6.3853,156.53,156.5,38.466]
[1749493804218,7.58702906,156.53,156.5,32.08]
[1749493804619,6.3855,156.52,156.5,32.08]
[1749493805818,14.01641226,156.53,156.5,38.4661]
[1749493806026,7.63131226,156.53,156.5,38.4661]
[1749493806322,7.63131226,156.53,156.5,6.3861]
[1749493806723,14.01641226,156.53,156.5,6.3861]
[1749493807821,7.63131226,156.53,156.51,6.3856]
[1749493808527,14.01621226,156.53,156.51,6.3856]
[1749493809024,7.63131226,156.53,156.5,6.386]
[1749493810729,14.01641226,156.53,156.51,6.3856]
[1749493811130,0.0442832,156.53,156.49,0.04649987]
[1749493811330,0.0442832,156.53,156.52,6.3853]
[1749493821544,3.53,156.56,156.55,6.3841]
[1749493826345,3.53,156.56,156.55,13.97112906]
[1749493826546,3.53,156.56,156.55,46.07112906]
[1749493831953,3.53,156.56,156.55,32.1]
[1749493832152,3.53,156.56,156.54,0.04317468]
[1749493832546,7.63395368,156.57,156.54,0.04317468]
[1749493832753,5.29297544,156.56,156.54,0.04317468]
[1749493832949,7.58702906,156.55,156.49,39.64702906]
[1749493833148,7.58702906,156.55,156.49,32.06]
[1749493833748,7.58702906,156.53,156.49,32.06]
[1749493833943,7.6308729,156.53,156.49,32.10357781]
[1749493834153,6.3854,156.52,156.49,32.10357781]
[1749493834847,6.3854,156.52,156.49,38.49007781]
[1749493835055,3.53,156.51,156.49,38.49007781]
[1749493836154,4.15,156.51,156.49,38.49007781]
[1749493836355,10.5358,156.51,156.49,38.49007781]
[1749493836654,11.73702906,156.51,156.49,0.04357781]
[1749493837252,6.3861,156.5,156.49,0.04357781]
[1749493838659,18.12302906,156.51,156.49,0.04357781]
[1749493838857,11.73702906,156.51,156.49,0.04357781]
[1749493839155,4.15,156.51,156.5,6.3861]
[1749493842850,0.0001,156.51,156.5,38.4661]
[1749493846660,0.0001,156.51,156.5,40.5578]
[1749493847458,5.27356277,156.58,156.56,6.3836]
[1749493847662,6.3829,156.58,156.52,7.58702906]
[1749493848150,6.3829,156.58,156.55,6.3839]
[1749493848650,6.42375131,156.58,156.55,6.43216417]
[1749493848851,0.04085131,156.58,156.55,0.04826417]
[1749493849056,7.58702906,156.56,156.5,32.08]
[1749493849259,7.58702906,156.54,156.5,32.08]
[1749493850061,7.63094169,156.54,156.5,32.12403929]
[1749493850463,6.385,156.53,156.5,32.12403929]
[1749493851158,6.385,156.53,156.5,38.51003929]
[1749493851561,7.63094169,156.54,156.5,38.51003929]
[1749493852163,7.63094169,156.54,156.51,6.3856]
[1749493853063,0.04391263,156.54,156.51,6.3856]
[1749493853466,0.04391263,156.54,156.52,6.3852]
[1749493854060,0.04391263,156.54,156.53,6.3849]
[1749493862670,0.04391263,156.54,156.52,7.58702906]
[1749493862671,0.04391263,156.54,156.52,6.3851]
[1749493863074,0.04391263,156.54,156.5,39.71106835]
[1749493864274,0.04391263,156.54,156.53,6.3849]
[1749493868874,0.04391263,156.54,156.52,6.3852]
[1749493869270,0.04391263,156.54,156.5,32.12403929]
[1749493869470,0.04391263,156.54,156.52,6.3851]
[1749493869772,0.04391263,156.54,156.5,39.71106835]
[1749493870573,0.04391263,156.54,156.52,6.385]
[1749493871275,0.04391263,156.54,156.53,6.3849]
[1749493873176,0.04391263,156.54,156.52,6.3851]
[1749493873778,0.04391263,156.54,156.53,6.3849]
[1749493874174,6.42851263,156.54,156.5,32.12403929]
[1749493874375,6.42851263,156.54,156.51,6.3856]
[1749493874675,6.42851263,156.54,156.5,39.71106835]
[1749493875072,6.42851263,156.54,156.51,6.3856]
[1749493875266,6.42851263,156.54,156.5,39.71106835]
[1749493876176,0.04391263,156.54,156.52,6.385]
[1749493879580,6.42841263,156.54,156.52,6.385]
[1749493884395,6.42841263,156.54,156.51,6.3856]
[1749493885091,6.42841263,156.54,156.52,6.3852]
[1749493886193,0.04391263,156.54,156.52,6.3852]
[1749493886395,5.29464653,156.53,156.52,6.3852]
[1749493886582,0.04391263,156.54,156.52,6.3852]
[1749493888096,6.42851263,156.54,156.52,6.3852]
[1749493890096,0.04391263,156.54,156.53,6.3849]
[1749493890290,5.33828249,156.54,156.53,6.3849]
[1749493890491,5.33828249,156.54,156.5,39.71106835]
[1749493890794,0.04391263,156.54,156.52,6.3851]
[1749493894797,6.42851263,156.54,156.52,6.3851]
[1749493897202,0.04391263,156.54,156.53,6.3849]
[1749493897400,5.34401803,156.54,156.53,6.3849]
[1749493899005,5.34401803,156.54,156.52,6.3851]
[1749493899304,5.3001054,156.53,156.52,6.3851]
[1749493901095,0.04391263,156.54,156.52,6.3851]
[1749493901502,5.30080893,156.53,156.52,6.3851]
[1749493902707,5.30080893,156.53,156.51,6.3855]
[1749493902907,11.2833831,156.54,156.51,6.3855]
[1749493903107,5.30106411,156.53,156.51,6.3855]
[1749493903407,11.2833831,156.54,156.51,6.3855]
[1749493903606,5.30148332,156.53,156.51,6.3855]
[1749493903805,11.2833831,156.54,156.51,6.3855]
[1749493904007,5.3022277,156.53,156.51,6.3855]
[1749493904203,11.2833831,156.54,156.51,6.3855]
[1749493904400,5.30256037,156.53,156.51,6.3855]
[1749493904600,11.2833831,156.54,156.51,6.3855]
[1749493904808,11.68768991,156.53,156.51,6.3855]
[1749493905010,6.3849,156.53,156.51,6.3855]
[1749493905409,11.2835831,156.54,156.51,6.3855]
[1749493905710,5.30276467,156.53,156.52,6.3853]
[1749493908313,5.30276467,156.53,156.52,11.24027047]
[1749493908713,0.04391263,156.54,156.53,6.3849]
[1749493908910,5.34373123,156.54,156.53,11.23987047]
[1749493910518,5.34373123,156.54,156.53,6.3849]
[1749493911115,0.04391263,156.54,156.53,11.23987047]
[1749493911316,6.3826,156.59,156.57,6.3832]
[1749493911508,5.30336099,156.58,156.57,6.3832]
[1749493913817,16.54133146,156.58,156.56,6.42486386]
[1749493914016,11.23797047,156.58,156.56,6.42486386]
[1749493914317,4.85497047,156.58,156.56,6.42486386]
[1749493914711,11.28245321,156.59,156.56,6.42486386]
[1749493914909,5.28569064,156.58,156.56,6.42486386]
[1749493915215,11.28245321,156.59,156.56,6.42486386]
[1749493915419,5.28441978,156.58,156.56,11.27983433]
[1749493915619,11.28245321,156.59,156.56,11.27983433]
[1749493915819,5.28433666,156.58,156.56,11.27983433]
[1749493916021,11.28245321,156.59,156.56,11.27983433]
[1749493916216,5.28608769,156.58,156.56,11.27983433]
[1749493916521,11.28245321,156.59,156.57,6.3832]
[1749493916820,0.04478274,156.59,156.58,4.85497047]
[1749493918010,0.04478274,156.59,156.58,11.23787047]
[1749493918209,10.18891222,156.59,156.56,0.04136386]
[1749493918412,4.85497047,156.58,156.56,0.04136386]
[1749493918616,4.85497047,156.58,156.56,6.42486386]
[1749493918823,4.89975321,156.59,156.56,6.42486386]
[1749493919516,11.28245321,156.59,156.57,6.3833]
[1749493919712,4.89975321,156.59,156.57,6.3833]
[1749493920822,0.04478274,156.59,156.57,6.3833]
[1749493922925,6.42728274,156.59,156.57,6.3833]
[1749493923426,0.04478274,156.59,156.57,6.3833]
[1749493924019,0.04478274,156.59,156.58,6.3829]
[1749493924526,0.04478274,156.59,156.57,6.3831]
[1749493925123,7.62607922,156.59,156.56,0.04136386]
[1749493925317,7.58129648,156.57,156.56,0.04136386]
[1749493925516,12.87920935,156.57,156.56,0.04136386]
[1749493925715,19.26250935,156.57,156.56,0.04136386]
[1749493926626,0.04478274,156.59,156.56,0.04136386]
[1749493927025,0.04478274,156.59,156.58,6.3829]
[1749493927728,0.04478274,156.59,156.58,13.96419648]
[1749493928028,5.29767409,156.63,156.58,7.58129648]
[1749493928333,7.58129648,156.66,156.6,7.58129648]
[1749493928334,6.3803,156.65,156.6,7.58129648]
[1749493928523,5.29528743,156.64,156.61,6.3814]
[1749493928725,7.58129648,156.66,156.61,6.3814]
[1749493928927,5.33922506,156.65,156.62,0.04102505]
[1749493929231,5.29527913,156.64,156.62,0.04102505]
[1749493929427,0.04394593,156.65,156.62,0.04102505]
[1749493929627,5.293345,156.64,156.62,0.04102505]
[1749493929830,6.3804,156.64,156.62,0.04102505]
[1749493932226,11.67801444,156.64,156.62,0.04102505]
[1749493932532,6.3804,156.64,156.62,0.04102505]
[1749493933331,6.42414593,156.65,156.62,6.42222505]
[1749493934428,6.3804,156.64,156.62,6.42222505]
[1749493934629,6.3804,156.64,156.62,0.04102505]
[1749493935731,0.04394593,156.65,156.62,0.04102505]
[1749493936230,0.04394593,156.65,156.63,6.3805]
[1749493939932,0.04394593,156.65,156.62,0.04102505]
[1749493940634,0.04394593,156.65,156.63,6.3806]
[1749493942836,0.04394593,156.65,156.62,0.04102505]
[1749493943537,6.3807,156.64,156.62,0.04102505]
[1749493943733,7.58129648,156.64,156.62,0.04102505]
[1749493944130,7.58129648,156.64,156.58,6.3825]
[1749493944336,7.58129648,156.59,156.54,31.98]
[1749493944730,7.58129648,156.57,156.51,31.98]
[1749493944934,31.98,156.62,156.51,31.98]
[1749493944935,7.58129648,156.55,156.51,31.98]
[1749493945137,7.62665409,156.55,156.51,32.02394914]
[1749493945638,6.3848,156.54,156.51,32.02394914]
[1749493946638,6.3848,156.54,156.51,38.40944914]
[1749493947836,14.01095409,156.55,156.52,6.3853]
[1749493948033,0.04535761,156.55,156.51,32.02394914]
[1749493948532,0.04535761,156.55,156.52,6.3852]